fUST/lending_fUST_20250520
["ID","MTS","AMOUNT","RATE_DAILY","PERIOD"]
[361688825,1747693854086,-688.5,0.00019178,2]
[361688826,1747693854095,-430.0,0.00019178,2]
[361688827,1747693854104,-430.0,0.00019178,2]
[361688828,1747693854113,-616.06,0.00019178,2]
[361688829,1747693854122,-430.0,0.00019178,2]
[361688830,1747693854131,-430.0,0.00019178,2]
[361688831,1747693854140,-455.92,0.00019178,2]
[361688832,1747693854150,-430.0,0.00019178,2]
[361688833,1747693854159,-430.0,0.00019178,2]
[361688834,1747693854167,-430.0,0.00019178,2]
[361688835,1747693854176,-430.0,0.00019178,2]
[361688836,1747693854186,-430.0,0.00019178,2]
[361688837,1747693854195,-430.0,0.00019178,2]
[361688838,1747693854205,-430.0,0.00019178,2]
[361688839,1747693854216,-430.0,0.00019178,2]
[361688840,1747693854225,-430.0,0.00019178,2]
[361688841,1747693854235,-430.0,0.00019178,2]
[361688842,1747693854244,-430.0,0.00019178,2]
[361688843,1747693854254,-1238.66,0.00019178,2]
[361688844,1747693854263,-430.0,0.00019178,2]
[361688845,1747693854272,-430.0,0.00019178,2]
[361688846,1747693854281,-430.0,0.00019178,2]
[361688847,1747693854292,-681.65,0.00019178,2]
[361688848,1747693854301,-430.0,0.00019178,2]
[361688849,1747693854310,-430.0,0.00019178,2]
[361688850,1747693854320,-430.0,0.00019178,2]
[361688851,1747693854329,-430.0,0.00019178,2]
[361688852,1747693854338,-430.0,0.00019178,2]
[361688853,1747693854347,-862.58,0.00019178,2]
[361688854,1747693854357,-724.76,0.00019178,2]
[361688855,1747693854366,-430.0,0.00019178,2]
[361688856,1747693854375,-304.07909566,0.00019178,2]
[361688857,1747693854385,-430.0,0.00019178,2]
[361688858,1747693854395,-718.44,0.00019178,2]
[361688859,1747693854404,-1486.21,0.00019178,2]
[361688860,1747693854413,-430.0,0.00019178,2]
[361688861,1747693854423,-190.0,0.00019178,2]
[361688862,1747693854432,-430.0,0.00019178,2]
[361688863,1747693854441,-436.65,0.00019178,2]
[361688864,1747693854450,-430.0,0.00019178,2]
[361688865,1747693854461,-430.0,0.00019178,2]
[361688866,1747693854471,-430.0,0.00019178,2]
[361688867,1747693854480,-1409.24,0.00019178,2]
[361688868,1747693854489,-1956.59,0.00019178,2]
[361688869,1747693854499,-430.0,0.00019178,2]
[361688870,1747693854508,-430.0,0.00019178,2]
[361688871,1747693854517,-621.1,0.00019178,2]
[361688872,1747693854527,-430.0,0.00019178,2]
[361688873,1747693854536,-479.24,0.00019178,2]
[361688874,1747693854546,-652.6,0.00019178,2]
[361688875,1747693854555,-3564.26,0.00019178,2]
[361688876,1747693854564,-625.58,0.00019178,2]
[361688877,1747693854575,-531.21,0.00019178,2]
[361688878,1747693854585,-430.0,0.00019178,2]
[361688879,1747693854594,-430.0,0.00019178,2]
[361688880,1747693854604,-430.0,0.00019178,2]
[361688881,1747693854614,-430.0,0.00019178,2]
[361688882,1747693854623,-430.0,0.00019178,2]
[361688883,1747693854633,-430.0,0.00019178,2]
[361688884,1747693854642,-917.56,0.00019178,2]
[361688885,1747693854652,-430.0,0.00019178,2]
[361688886,1747693854661,-430.0,0.00019178,2]
[361688887,1747693854671,-963.29,0.00019178,2]
[361688888,1747693854681,-1059.44,0.00019178,2]
[361688889,1747693854690,-2463.34,0.00019178,2]
[361688890,1747693854700,-1322.67,0.00019178,2]
[361688891,1747693854709,-430.0,0.00019178,2]
[361688892,1747693854718,-989.85,0.00019178,2]
[361688893,1747693854728,-430.0,0.00019178,2]
[361688894,1747693854737,-472.87,0.00019178,2]
[361688895,1747693854747,-430.0,0.00019178,2]
[361688896,1747693854758,-430.0,0.00019178,2]
[361688897,1747693854768,-430.0,0.00019178,2]
[361688898,1747693854777,-1071.91,0.00019178,2]
[361688899,1747693854787,-430.0,0.00019178,2]
[361688900,1747693854796,-430.0,0.00019178,2]
[361688901,1747693854805,-430.0,0.00019178,2]
[361688902,1747693854816,-6970.38,0.00019178,2]
[361688903,1747693854825,-1365.37,0.00019178,2]
[361688904,1747693854834,-435.96,0.00019178,2]
[361688905,1747693854843,-430.0,0.00019178,2]
[361688906,1747693854852,-430.0,0.00019178,2]
[361688907,1747693854861,-430.0,0.00019178,2]
[361688908,1747693854870,-492.52,0.00019178,2]
[361688909,1747693854880,-572.38,0.00019178,2]
[361688910,1747693854889,-430.0,0.00019178,2]
[361688911,1747693854898,-1276.02,0.00019178,2]
[361688912,1747693854907,-430.0,0.00019178,2]
[361688913,1747693854916,-430.0,0.00019178,2]
[361688914,1747693854925,-2285.96,0.00019178,2]
[361688915,1747693854935,-1674.68,0.00019178,2]
[361688916,1747693854944,-430.0,0.00019178,2]
[361688917,1747693854953,-430.0,0.00019178,2]
[361688918,1747693854962,-430.0,0.00019178,2]
[361688919,1747693854972,-430.0,0.00019178,2]
[361688920,1747693854981,-430.0,0.00019178,2]
[361688921,1747693854991,-430.0,0.00019178,2]
[361688922,1747693855000,-430.0,0.00019178,2]
[361688923,1747693855009,-430.0,0.00019178,2]
[361688924,1747693855018,-430.0,0.00019178,2]
[361688925,1747693855028,-1177.1,0.00019178,2]
[361688926,1747693855037,-430.0,0.00019178,2]
[361688927,1747693855046,-430.0,0.00019178,2]
[361688928,1747693855055,-430.0,0.00019178,2]
[361688929,1747693855065,-4144.0,0.00019178,2]
[361688930,1747693855074,-4514.42,0.00019178,2]
[361688931,1747693855084,-589.39,0.00019178,2]
[361688932,1747693855094,-430.0,0.00019178,2]
[361688933,1747693855103,-2345.01,0.00019178,2]
[361688934,1747693855112,-430.0,0.00019178,2]
[361688935,1747693855122,-430.0,0.00019178,2]
[361688936,1747693855131,-430.0,0.00019178,2]
[361688937,1747693855140,-430.0,0.00019178,2]
[361688938,1747693855150,-430.0,0.00019178,2]
[361688939,1747693855160,-1255.98,0.00019178,2]
[361688940,1747693855169,-1428.09,0.00019178,2]
[361688941,1747693855178,-1007.3,0.00019178,2]
[361688942,1747693855187,-430.0,0.00019178,2]
[361688943,1747693855197,-430.0,0.00019178,2]
[361688944,1747693855209,-430.0,0.00019178,2]
[361688945,1747693855218,-567.37,0.00019178,2]
[361688946,1747693855227,-430.0,0.00019178,2]
[361688947,1747693855236,-430.0,0.00019178,2]
[361688948,1747693855245,-430.0,0.00019178,2]
[361688949,1747693855254,-1170.71,0.00019178,2]
[361688950,1747693855264,-430.0,0.00019178,2]
[361688951,1747693855274,-430.0,0.00019178,2]
[361688952,1747693855283,-6164.94,0.00019178,2]
[361688953,1747693855292,-1695.82,0.00019178,2]
[361688954,1747693855302,-550.0,0.00019178,2]
[361688955,1747693855311,-1029.82,0.00019178,2]
[361688956,1747693855320,-430.0,0.00019178,2]
[361688957,1747693855330,-430.0,0.00019178,2]
[361688958,1747693855339,-430.0,0.00019178,2]
[361688959,1747693855348,-1142.01,0.00019178,2]
[361688960,1747693855357,-430.0,0.00019178,2]
[361688961,1747693855367,-503.28,0.00019178,2]
[361688962,1747693855376,-1592.78,0.00019178,2]
[361688963,1747693855385,-430.0,0.00019178,2]
[361688964,1747693855394,-1295.39,0.00019178,2]
[361688965,1747693855403,-670.07,0.00019178,2]
[361688966,1747693855413,-430.0,0.00019178,2]
[361688967,1747693855423,-430.0,0.00019178,2]
[361688968,1747693855432,-430.0,0.00019178,2]
[361688969,1747693855442,-499.97910546,0.00019178,2]
[361688970,1747693855451,-430.0,0.00019178,2]
[361688971,1747693855460,-430.0,0.00019178,2]
[361688972,1747693855469,-1232.45,0.00019178,2]
[361688973,1747693855479,-1017.31,0.00019178,2]
[361688974,1747693855488,-430.0,0.00019178,2]
[361688975,1747693855497,-430.0,0.00019178,2]
[361688976,1747693855507,-1326.53,0.00019178,2]
[361688977,1747693855516,-1258.46,0.00019178,2]
[361688978,1747693855526,-430.0,0.00019178,2]
[361688979,1747693855535,-2643.08,0.00019178,2]
[361688980,1747693855545,-430.0,0.00019178,2]
[361688981,1747693855554,-430.0,0.00019178,2]
[361688982,1747693855564,-430.0,0.00019178,2]
[361688983,1747693855573,-1678.98,0.00019178,2]
[361688984,1747693855583,-430.0,0.00019178,2]
[361688985,1747693855592,-670.64,0.00019178,2]
[361688986,1747693855602,-872.02,0.00019178,2]
[361688987,1747693855611,-430.0,0.00019178,2]
[361688988,1747693855621,-430.0,0.00019178,2]
[361688989,1747693855630,-430.0,0.00019178,2]
[361688990,1747693855640,-747.98,0.00019178,2]
[361688991,1747693855649,-993.14,0.00019178,2]
[361688992,1747693855659,-430.0,0.00019178,2]
[361688993,1747693855667,-867.01,0.00019178,2]
[361688994,1747693855678,-430.0,0.00019178,2]
[361688995,1747693855687,-561.84,0.00019178,2]
[361688996,1747693855696,-430.0,0.00019178,2]
[361688997,1747693855706,-896.57,0.00019178,2]
[361688998,1747693855715,-430.0,0.00019178,2]
[361688999,1747693855724,-430.0,0.00019178,2]
[361689000,1747693855734,-846.37,0.00019178,2]
[361689001,1747693855743,-489.72,0.00019178,2]
[361689002,1747693855752,-507.94,0.00019178,2]
[361689003,1747693855762,-500.0,0.00019178,2]
[361689004,1747693855770,-430.0,0.00019178,2]
[361689005,1747693855780,-551.77,0.00019178,2]
[361689006,1747693855789,-533.4,0.00019178,2]
[361689007,1747693855799,-361.61587039,0.00019178,2]
[361689008,1747693855808,-546.01,0.00019178,2]
[361689009,1747693855817,-1186.61,0.00019178,2]
[361689010,1747693855826,-691.74,0.00019178,2]
[361689011,1747693855836,-536.58,0.00019178,2]
[361689012,1747693855845,-587.23,0.00019178,2]
[361689013,1747693855854,-1193.12,0.00019178,2]
[361689014,1747693855863,-1021.33,0.00019178,2]
[361689015,1747693855872,-430.0,0.00019178,2]
[361689016,1747693855881,-430.0,0.00019178,2]
[361689017,1747693855891,-500.85222349,0.00019178,2]
[361689018,1747693855900,-1095.83,0.00019178,2]
[361689019,1747693855909,-430.0,0.00019178,2]
[361689020,1747693855918,-430.0,0.00019178,2]
[361689021,1747693855927,-155.0,0.00019178,2]
[361689022,1747693855936,-402.783509,0.00019178,2]
[361689023,1747693855946,-548.76608719,0.00019193,2]
[361689024,1747693855956,-500.0,0.00019193,2]
[361689025,1747693855965,-501.17628705,0.00019193,2]
[361689026,1747693855974,-253.4005,0.000192,2]
[361689027,1747693855983,-531.89740536,0.00019216,2]
[361689028,1747693855993,-1000.0,0.00019221,2]
[361689029,1747693856002,-1000.0,0.00019221,2]
[361689030,1747693856011,-1159.3892112,0.00019279,2]
[361689031,1747693856021,-151.0,0.000193,2]
[361689032,1747693856030,-4861.38865383,0.00019327,2]
[361689033,1747693856040,-151.0,0.00019452,2]
[361689034,1747693856049,-151.0,0.00019452,2]
[361689035,1747693856059,-154.447541,0.00019452,2]
[361689036,1747693856068,-154.447541,0.00019452,2]
[361689037,1747693856077,-651.52,0.00019452,2]
[361689038,1747693856086,-430.0,0.00019452,2]
[361689039,1747693856095,-430.0,0.00019452,2]
[361689040,1747693856104,-430.0,0.00019452,2]
[361689041,1747693856114,-430.0,0.00019452,2]
[361689042,1747693856123,-430.0,0.00019452,2]
[361689043,1747693856132,-732.74,0.00019452,2]
[361689044,1747693856141,-430.0,0.00019452,2]
[361689045,1747693856151,-430.0,0.00019452,2]
[361689046,1747693856160,-430.0,0.00019452,2]
[361689047,1747693856170,-430.0,0.00019452,2]
[361689048,1747693856179,-509.72,0.00019452,2]
[361689049,1747693856188,-430.0,0.00019452,2]
[361689050,1747693856198,-430.0,0.00019452,2]
[361689051,1747693856211,-430.0,0.00019452,2]
[361689052,1747693856220,-440.52,0.00019452,2]
[361689053,1747693856230,-430.0,0.00019452,2]
[361689054,1747693856239,-430.0,0.00019452,2]
[361689055,1747693856248,-430.0,0.00019452,2]
[361689056,1747693856260,-430.0,0.00019452,2]
[361689057,1747693856270,-430.0,0.00019452,2]
[361689058,1747693856280,-160.0,0.00019452,2]
[361689059,1747693856291,-492.06121369,0.00019452,2]
[361689060,1747693856300,-460.0,0.00019452,2]
[361689061,1747693856310,-430.0,0.00019452,2]
[361689062,1747693856319,-437.51,0.00019452,2]
[361689063,1747693856329,-584.57,0.00019452,2]
[361689064,1747693856339,-430.0,0.00019452,2]
[361689065,1747693856348,-241.24652152,0.00019452,2]
[361689066,1747693856357,-430.0,0.00019452,2]
[361689067,1747693856367,-430.0,0.00019452,2]
[361689068,1747693856376,-597.19,0.00019452,2]
[361689069,1747693856386,-279.82431373,0.00019452,2]
[361689070,1747693856396,-430.0,0.00019452,2]
[361689071,1747693856406,-821.41,0.00019452,2]
[361689072,1747693856417,-430.0,0.00019452,2]
[361689073,1747693856426,-430.0,0.00019452,2]
[361689074,1747693856436,-430.0,0.00019452,2]
[361689075,1747693856446,-367.96879978,0.00019452,2]
[361689076,1747693856456,-430.0,0.00019452,2]
[361689077,1747693856465,-430.0,0.00019452,2]
[361689078,1747693856474,-430.0,0.00019452,2]
[361689079,1747693856484,-484.43,0.00019452,2]
[361689080,1747693856492,-430.0,0.00019452,2]
[361689081,1747693856502,-430.0,0.00019452,2]
[361689082,1747693856514,-451.97,0.00019452,2]
[361689083,1747693856524,-430.0,0.00019452,2]
[361689084,1747693856534,-430.0,0.00019452,2]
[361689085,1747693856544,-430.0,0.00019452,2]
[361689086,1747693856554,-430.0,0.00019452,2]
[361689087,1747693856564,-430.0,0.00019452,2]
[361689088,1747693856574,-430.0,0.00019452,2]
[361689089,1747693856583,-628.93,0.00019452,2]
[361689090,1747693856594,-826.72,0.00019452,2]
[361689091,1747693856604,-430.0,0.00019452,2]
[361689092,1747693856613,-430.0,0.00019452,2]
[361689093,1747693856623,-457.8,0.00019452,2]
[361689094,1747693856633,-430.0,0.00019452,2]
[361689095,1747693856643,-430.0,0.00019452,2]
[361689096,1747693856653,-320.0,0.00019452,2]
[361689097,1747693856662,-430.0,0.00019452,2]
[361689098,1747693856671,-788.12,0.00019452,2]
[361689099,1747693856682,-430.0,0.00019452,2]
[361689100,1747693856692,-500.0,0.00019452,2]
[361689101,1747693856704,-430.0,0.00019452,2]
[361689102,1747693856714,-430.0,0.00019452,2]
[361689103,1747693856723,-430.0,0.00019452,2]
[361689104,1747693856733,-541.45,0.00019452,2]
[361689105,1747693856743,-645.45,0.00019452,2]
[361689106,1747693856753,-430.0,0.00019452,2]
[361689107,1747693856764,-430.0,0.00019452,2]
[361689108,1747693856774,-430.0,0.00019452,2]
[361689109,1747693856910,-430.0,0.00019452,2]
[361689110,1747693856919,-430.0,0.00019452,2]
[361689111,1747693856929,-430.0,0.00019452,2]
[361689112,1747693856939,-430.0,0.00019452,2]
[361689113,1747693856948,-570.0,0.00019452,2]
[361689114,1747693856958,-570.0,0.00019452,2]
[361689115,1747693856968,-430.0,0.00019452,2]
[361689116,1747693856977,-430.0,0.00019452,2]
[361689117,1747693856987,-560.02,0.00019452,2]
[361689118,1747693856996,-772.82,0.00019452,2]
[361689119,1747693857007,-470.0,0.00019452,2]
[361689120,1747693857016,-430.0,0.00019452,2]
[361689121,1747693857026,-430.0,0.00019452,2]
[361689122,1747693857035,-430.0,0.00019452,2]
[361689123,1747693857045,-430.0,0.00019452,2]
[361689124,1747693857054,-430.0,0.00019452,2]
[361689125,1747693857063,-570.0,0.00019452,2]
[361689126,1747693857073,-238.5056543,0.00019452,2]
[361689127,1747693857083,-430.0,0.00019452,2]
[361689128,1747693857092,-430.0,0.00019452,2]
[361689129,1747693857101,-430.0,0.00019452,2]
[361689130,1747693857111,-430.0,0.00019452,2]
[361689131,1747693857121,-430.0,0.00019452,2]
[361689132,1747693857130,-430.0,0.00019452,2]
[361689133,1747693857141,-688.5,0.00019452,2]
[361689134,1747693857151,-430.0,0.00019452,2]
[361689135,1747693857160,-430.0,0.00019452,2]
[361689136,1747693857169,-616.06,0.00019452,2]
[361689137,1747693857179,-430.0,0.00019452,2]
[361689138,1747693857188,-430.0,0.00019452,2]
[361689139,1747693857198,-455.92,0.00019452,2]
[361689140,1747693857211,-430.0,0.00019452,2]
[361689141,1747693857223,-447.53274166,0.00019452,2]
[361689142,1747693857233,-430.0,0.00019452,2]
[361689143,1747693857243,-430.0,0.00019452,2]
[361689144,1747693857253,-430.0,0.00019452,2]
[361689145,1747693857263,-430.0,0.00019452,2]
[361689146,1747693857272,-430.0,0.00019452,2]
[361689147,1747693857281,-430.0,0.00019452,2]
[361689148,1747693857291,-430.0,0.00019452,2]
[361689149,1747693857300,-430.0,0.00019452,2]
[361689150,1747693857310,-430.0,0.00019452,2]
[361689151,1747693857319,-1238.66,0.00019452,2]
[361689152,1747693857328,-430.0,0.00019452,2]
[361689153,1747693857337,-241.35601877,0.00019452,2]
[361689154,1747693857347,-430.0,0.00019452,2]
[361689155,1747693857356,-681.65,0.00019452,2]
[361689156,1747693857365,-430.0,0.00019452,2]
[361689157,1747693857374,-430.0,0.00019452,2]
[361689158,1747693857383,-430.0,0.00019452,2]
[361689159,1747693857393,-430.0,0.00019452,2]
[361689160,1747693857402,-430.0,0.00019452,2]
[361689161,1747693857411,-862.58,0.00019452,2]
[361689162,1747693857421,-724.76,0.00019452,2]
[361689163,1747693857431,-430.0,0.00019452,2]
[361689164,1747693857441,-430.0,0.00019452,2]
[361689165,1747693857450,-718.44,0.00019452,2]
[361689166,1747693857461,-1486.21,0.00019452,2]
[361689167,1747693857471,-430.0,0.00019452,2]
[361689168,1747693857481,-430.0,0.00019452,2]
[361689169,1747693857491,-436.65,0.00019452,2]
[361689170,1747693857500,-430.0,0.00019452,2]
[361689171,1747693857510,-1409.24,0.00019452,2]
[361689172,1747693857519,-430.0,0.00019452,2]
[361689173,1747693857528,-430.0,0.00019452,2]
[361689174,1747693857538,-1956.59,0.00019452,2]
[361689175,1747693857548,-430.0,0.00019452,2]
[361689176,1747693857557,-430.0,0.00019452,2]
[361689177,1747693857567,-621.1,0.00019452,2]
[361689178,1747693857576,-430.0,0.00019452,2]
[361689179,1747693857585,-479.24,0.00019452,2]
[361689180,1747693857595,-652.6,0.00019452,2]
[361689181,1747693857604,-3564.26,0.00019452,2]
[361689182,1747693857614,-625.58,0.00019452,2]
[361689183,1747693857623,-531.21,0.00019452,2]
[361689184,1747693857632,-430.0,0.00019452,2]
[361689185,1747693857642,-430.0,0.00019452,2]
[361689186,1747693857651,-430.0,0.00019452,2]
[361689187,1747693857661,-430.0,0.00019452,2]
[361689188,1747693857670,-430.0,0.00019452,2]
[361689189,1747693857680,-430.0,0.00019452,2]
[361689190,1747693857689,-917.56,0.00019452,2]
[361689191,1747693857699,-430.0,0.00019452,2]
[361689192,1747693857707,-240.54,0.00019452,2]
[361689193,1747693857717,-963.29,0.00019452,2]
[361689194,1747693857727,-1059.44,0.00019452,2]
[361689195,1747693857737,-2463.34,0.00019452,2]
[361689196,1747693857746,-1322.67,0.00019452,2]
[361689197,1747693857755,-430.0,0.00019452,2]
[361689198,1747693857765,-989.85,0.00019452,2]
[361689199,1747693857775,-430.0,0.00019452,2]
[361689200,1747693857784,-430.0,0.00019452,2]
[361689201,1747693857793,-472.87,0.00019452,2]
[361689202,1747693857802,-430.0,0.00019452,2]
[361689203,1747693857812,-430.0,0.00019452,2]
[361689204,1747693857821,-1071.91,0.00019452,2]
[361689205,1747693857830,-430.0,0.00019452,2]
[361689206,1747693857839,-430.0,0.00019452,2]
[361689207,1747693857849,-430.0,0.00019452,2]
[361689208,1747693857859,-6970.38,0.00019452,2]
[361689209,1747693857868,-1365.37,0.00019452,2]
[361689210,1747693857877,-435.96,0.00019452,2]
[361689211,1747693857886,-430.0,0.00019452,2]
[361689212,1747693857895,-320.0,0.00019452,2]
[361689213,1747693857905,-430.0,0.00019452,2]
[361689214,1747693857914,-492.52,0.00019452,2]
[361689215,1747693857924,-572.38,0.00019452,2]
[361689216,1747693857933,-430.0,0.00019452,2]
[361689217,1747693857942,-1276.02,0.00019452,2]
[361689218,1747693857952,-430.0,0.00019452,2]
[361689219,1747693857961,-430.0,0.00019452,2]
[361689220,1747693857971,-2285.96,0.00019452,2]
[361689221,1747693857980,-1674.68,0.00019452,2]
[361689222,1747693857990,-570.0,0.00019452,2]
[361689223,1747693857999,-430.0,0.00019452,2]
[361689224,1747693858008,-430.0,0.00019452,2]
[361689225,1747693858018,-570.0,0.00019452,2]
[361689226,1747693858027,-401.9604569,0.00019452,2]
[361689227,1747693858037,-430.0,0.00019452,2]
[361689228,1747693858046,-430.0,0.00019452,2]
[361689229,1747693858055,-430.0,0.00019452,2]
[361689230,1747693858065,-430.0,0.00019452,2]
[361689231,1747693858074,-430.0,0.00019452,2]
[361689232,1747693858083,-1177.1,0.00019452,2]
[361689233,1747693858093,-570.0,0.00019452,2]
[361689234,1747693858103,-430.0,0.00019452,2]
[361689235,1747693858112,-4144.0,0.00019452,2]
[361689236,1747693858122,-4514.42,0.00019452,2]
[361689237,1747693858131,-589.39,0.00019452,2]
[361689238,1747693858141,-570.0,0.00019452,2]
[361689239,1747693858150,-2345.01,0.00019452,2]
[361689240,1747693858159,-325.63189709,0.00019452,2]
[361689241,1747693858169,-430.0,0.00019452,2]
[361689242,1747693858178,-430.0,0.00019452,2]
[361689243,1747693858188,-430.0,0.00019452,2]
[361689244,1747693858197,-430.0,0.00019452,2]
[361689245,1747693858207,-1255.98,0.00019452,2]
[361689246,1747693858219,-1428.09,0.00019452,2]
[361689247,1747693858228,-1007.3,0.00019452,2]
[361689248,1747693858237,-430.0,0.00019452,2]
[361689249,1747693858246,-430.0,0.00019452,2]
[361689250,1747693858257,-430.0,0.00019452,2]
[361689251,1747693858267,-567.37,0.00019452,2]
[361689252,1747693858276,-430.0,0.00019452,2]
[361689253,1747693858286,-430.0,0.00019452,2]
[361689254,1747693858295,-550.0,0.00019452,2]
[361689255,1747693858304,-1170.71,0.00019452,2]
[361689256,1747693858313,-430.0,0.00019452,2]
[361689257,1747693858323,-430.0,0.00019452,2]
[361689258,1747693858332,-6164.94,0.00019452,2]
[361689259,1747693858342,-1695.82,0.00019452,2]
[361689260,1747693858350,-1029.82,0.00019452,2]
[361689261,1747693858359,-430.0,0.00019452,2]
[361689262,1747693858369,-430.0,0.00019452,2]
[361689263,1747693858378,-430.0,0.00019452,2]
[361689264,1747693858388,-1142.01,0.00019452,2]
[361689265,1747693858397,-430.0,0.00019452,2]
[361689266,1747693858406,-503.28,0.00019452,2]
[361689267,1747693858415,-1592.78,0.00019452,2]
[361689268,1747693858425,-430.0,0.00019452,2]
[361689269,1747693858434,-1295.39,0.00019452,2]
[361689270,1747693858444,-670.07,0.00019452,2]
[361689271,1747693858455,-430.0,0.00019452,2]
[361689272,1747693858464,-430.0,0.00019452,2]
[361689273,1747693858474,-430.0,0.00019452,2]
[361689274,1747693858483,-430.0,0.00019452,2]
[361689275,1747693858492,-431.73681557,0.00019452,2]
[361689276,1747693858502,-1232.45,0.00019452,2]
[361689277,1747693858511,-1017.31,0.00019452,2]
[361689278,1747693858521,-430.0,0.00019452,2]
[361689279,1747693858530,-381.2967582,0.00019452,2]
[361689280,1747693858539,-1326.53,0.00019452,2]
[361689281,1747693858549,-1258.46,0.00019452,2]
[361689282,1747693858558,-430.0,0.00019452,2]
[361689283,1747693858567,-2643.08,0.00019452,2]
[361689284,1747693858577,-430.0,0.00019452,2]
[361689285,1747693858586,-430.0,0.00019452,2]
[361689286,1747693858596,-430.0,0.00019452,2]
[361689287,1747693858604,-1678.98,0.00019452,2]
[361689288,1747693858614,-430.0,0.00019452,2]
[361689289,1747693858623,-670.64,0.00019452,2]
[361689290,1747693858632,-872.02,0.00019452,2]
[361689291,1747693858642,-430.0,0.00019452,2]
[361689292,1747693858651,-430.0,0.00019452,2]
[361689293,1747693858660,-430.0,0.00019452,2]
[361689294,1747693858669,-747.98,0.00019452,2]
[361689295,1747693858679,-993.14,0.00019452,2]
[361689296,1747693858689,-430.0,0.00019452,2]
[361689297,1747693858698,-867.01,0.00019452,2]
[361689298,1747693858707,-316.01,0.00019452,2]
[361689299,1747693858717,-561.84,0.00019452,2]
[361689300,1747693858726,-430.0,0.00019452,2]
[361689301,1747693858736,-896.57,0.00019452,2]
[361689302,1747693858745,-430.0,0.00019452,2]
[361689303,1747693858754,-846.37,0.00019452,2]
[361689304,1747693858763,-430.0,0.00019452,2]
[361689305,1747693858774,-489.72,0.00019452,2]
[361689306,1747693858783,-507.94,0.00019452,2]
[361689307,1747693858792,-430.0,0.00019452,2]
[361689308,1747693858802,-551.77,0.00019452,2]
[361689309,1747693858811,-533.4,0.00019452,2]
[361689310,1747693858821,-546.01,0.00019452,2]
[361689311,1747693858830,-1186.61,0.00019452,2]
[361689312,1747693858839,-691.74,0.00019452,2]
[361689313,1747693858849,-536.58,0.00019452,2]
[361689314,1747693858857,-587.23,0.00019452,2]
[361689315,1747693858867,-1193.12,0.00019452,2]
[361689316,1747693858876,-1021.33,0.00019452,2]
[361689317,1747693858885,-430.0,0.00019452,2]
[361689318,1747693858895,-441.52,0.00019452,2]
[361689319,1747693858904,-1095.83,0.00019452,2]
[361689320,1747693858913,-430.0,0.00019452,2]
[361689321,1747693858923,-430.0,0.00019452,2]
[361689322,1747693858932,-1000.0,0.00019497,2]
[361689323,1747693858941,-1000.0,0.00019497,2]
[361689324,1747693858951,-1000.0,0.00019497,2]